fUST/lending_fUST_20240901
["ID","MTS","AMOUNT","RATE_DAILY","PERIOD"]
[336808748,1725181853418,-151.0,0.00030136,7]
[336808749,1725181853428,-500.0,0.00030136,31]
[336808750,1725181853438,-151.0,0.00030136,7]
[336808751,1725181853447,-151.0,0.00030136,7]
[336808752,1725181853456,-151.0,0.00030136,7]
[336808753,1725181853465,-4574.6,0.00030136,31]
[336808754,1725181853476,-151.0,0.00030136,7]
[336808755,1725181853485,-409.134107,0.00030136,7]
[336808756,1725181853494,-409.134107,0.00030136,7]
[336808757,1725181853503,-409.134107,0.00030136,7]
[336808758,1725181853512,-500.0,0.00030136,31]
[336808759,1725181853521,-409.134107,0.00030136,7]
[336808760,1725181853530,-409.134107,0.00030136,7]
[336808761,1725181853539,-409.134107,0.00030136,7]
[336808762,1725181853548,-3317.1,0.00030136,31]
[336808763,1725181853557,-409.134107,0.00030136,7]
[336808764,1725181853567,-673.830322,0.00030136,7]
[336808765,1725181853577,-409.134107,0.00030136,7]
[336808766,1725181853585,-673.830322,0.00030136,7]
[336808767,1725181853595,-673.830322,0.00030136,7]
[336808768,1725181853604,-500.0,0.00030136,31]
[336808769,1725181853613,-501.37636232,0.00030136,31]
[336808770,1725181853622,-500.0,0.00030136,31]
[336808771,1725181853631,-409.134107,0.00030136,7]
[336808772,1725181853640,-673.830322,0.00030136,7]
[336808773,1725181853649,-500.0,0.00030136,31]
[336808774,1725181853658,-409.134107,0.00030136,7]
[336808775,1725181853667,-673.830322,0.00030136,7]
[336808776,1725181853676,-409.134107,0.00030136,7]
[336808777,1725181853685,-673.830322,0.00030136,7]
[336808778,1725181853694,-409.134107,0.00030136,7]
[336808779,1725181853703,-416.09270288,0.00030136,31]
[336808780,1725181853712,-673.830322,0.00030136,7]
[336808781,1725181853721,-409.134107,0.00030136,7]
[336808782,1725181853730,-500.0,0.00030136,31]
[336808783,1725181853740,-673.830322,0.00030136,7]
[336808784,1725181853749,-500.63026469,0.00030136,31]
[336808785,1725181853758,-500.0,0.00030136,10]
[336808786,1725181853767,-409.134107,0.00030136,7]
[336808787,1725181853776,-673.830322,0.00030136,7]
[336808788,1725181853786,-409.134107,0.00030136,7]
[336808789,1725181853796,-673.830322,0.00030136,7]
[336808790,1725181853805,-409.134107,0.00030136,7]
[336808791,1725181853814,-673.830322,0.00030136,7]
[336808792,1725181853824,-409.134107,0.00030136,7]
[336808793,1725181853833,-673.830322,0.00030136,7]
[336808794,1725181853842,-409.134107,0.00030136,7]
[336808795,1725181853852,-7027.12,0.00030136,31]
[336808796,1725181853861,-673.830322,0.00030136,7]
[336808797,1725181853870,-409.134107,0.00030136,7]
[336808798,1725181853880,-673.830322,0.00030136,7]
[336808799,1725181853890,-500.0,0.00030136,31]
[336808800,1725181853900,-409.134111,0.00030136,7]
[336808801,1725181853909,-673.830322,0.00030136,7]
[336808802,1725181853919,-500.93254474,0.00030136,31]
[336808803,1725181853928,-673.830322,0.00030136,7]
[336808804,1725181853937,-8885.47,0.00030136,31]
[336808805,1725181853946,-673.830322,0.00030136,7]
[336808806,1725181853956,-673.830322,0.00030136,7]
[336808807,1725181853965,-673.830322,0.00030136,7]
[336808808,1725181853974,-673.830312,0.00030136,7]
[336808809,1725181853983,-500.0,0.00030136,31]
[336808810,1725181853993,-500.0,0.00030136,31]
[336808811,1725181854002,-2357.64,0.00030136,31]
[336808812,1725181854011,-500.0,0.00030136,31]
[336808813,1725181854020,-1010.77,0.00030136,31]
[336808814,1725181854029,-504.07065381,0.00030136,31]
[336808815,1725181854038,-500.0,0.00030136,31]
[336808816,1725181854048,-17993.87,0.00030136,31]
[336808817,1725181854057,-500.0,0.00030136,31]
[336808818,1725181854067,-566.62755411,0.00030136,31]
[336808819,1725181854076,-502.05870304,0.00030136,31]
[336808820,1725181854193,-500.0,0.00030136,31]
[336808821,1725181854203,-151.0,0.00030136,7]
[336808822,1725181854212,-900.87,0.00030136,31]
[336808823,1725181854221,-151.0,0.00030136,7]
[336808824,1725181854231,-688.97,0.00030136,31]
[336808825,1725181854240,-26775.94,0.00030136,31]
[336808826,1725181854249,-151.0,0.00030136,7]
[336808827,1725181854259,-500.0,0.00030136,31]
[336808828,1725181854268,-151.0,0.00030136,7]
[336808829,1725181854278,-151.0,0.00030136,7]
[336808830,1725181854287,-151.0,0.00030136,7]
[336808831,1725181854297,-292.10623,0.00030136,7]
[336808832,1725181854306,-500.0,0.00030136,31]
[336808833,1725181854314,-629.47547,0.00030136,7]
[336808834,1725181854324,-500.0,0.00030136,31]
[336808835,1725181854333,-629.47547,0.00030136,7]
[336808836,1725181854344,-629.47547,0.00030136,7]
[336808837,1725181854355,-629.47547,0.00030136,7]
[336808838,1725181854364,-629.47547,0.00030136,7]
[336808839,1725181854374,-500.0,0.00030136,31]
[336808840,1725181854383,-629.47547,0.00030136,7]
[336808841,1725181854393,-629.47547,0.00030136,7]
[336808842,1725181854402,-500.0,0.00030136,31]
[336808843,1725181854411,-500.0,0.00030136,31]
[336808844,1725181854422,-500.0,0.00030136,31]
[336808845,1725181854432,-500.0,0.00030136,31]
[336808846,1725181854442,-629.47547,0.00030136,7]
[336808847,1725181854451,-500.0,0.00030136,31]
[336808848,1725181854461,-5326.41,0.00030136,31]
[336808849,1725181854470,-629.47547,0.00030136,7]
[336808850,1725181854480,-500.0,0.00030136,31]
[336808851,1725181854490,-500.0,0.00030136,31]
[336808852,1725181854499,-629.47547,0.00030136,7]
[336808853,1725181854509,-468.42360655,0.00030136,31]
[336808854,1725181854519,-629.47547,0.00030136,7]
[336808855,1725181854528,-316.8898445,0.00030164,2]
[336808856,1725181854538,-500.0,0.00030173,5]
[336808857,1725181854547,-500.0,0.00030173,5]
[336808858,1725181854556,-156.78300178,0.00030173,5]
[336808859,1725181854565,-500.773625,0.00030173,5]
[336808860,1725181854575,-420.0,0.00030305,2]
[336808861,1725181854584,-465.00040762,0.0003035,2]
[336808862,1725181854594,-151.0,0.000304,7]
[336808863,1725181854603,-247.064387,0.000304,7]
[336808864,1725181854613,-438.12471712,0.0003041,31]
[336808865,1725181854623,-151.0,0.0003041,7]
[336808866,1725181854632,-151.0,0.0003041,7]
[336808867,1725181854642,-151.0,0.0003041,7]
[336808868,1725181854651,-151.0,0.0003041,7]
[336808869,1725181854659,-151.0,0.0003041,7]
[336808870,1725181854669,-151.0,0.0003041,7]
[336808871,1725181854678,-296.81015659,0.0003041,7]
[336808872,1725181854687,-472.99812073,0.0003041,31]
[336808873,1725181854697,-500.0,0.0003041,31]
[336808874,1725181854706,-1527.23,0.0003041,31]
[336808875,1725181854715,-500.0,0.0003041,31]
[336808876,1725181854725,-503.85247891,0.0003041,31]
[336808877,1725181854734,-522.73,0.0003041,31]
[336808878,1725181854743,-879.84,0.0003041,31]
[336808879,1725181854752,-500.0,0.0003041,31]
[336808880,1725181854761,-502.85223242,0.0003041,31]
[336808881,1725181854770,-500.75969453,0.0003041,31]
[336808882,1725181854779,-500.0,0.0003041,31]
[336808883,1725181854789,-500.0,0.0003041,31]
[336808884,1725181854799,-500.0,0.0003041,31]
[336808885,1725181854808,-781.11,0.0003041,31]
[336808886,1725181854817,-500.0,0.0003041,31]
[336808887,1725181854826,-500.0,0.0003041,31]
[336808888,1725181854836,-756.38,0.0003041,31]
[336808889,1725181854845,-500.0,0.0003041,31]
[336808890,1725181854854,-504.30308324,0.0003041,31]
[336808891,1725181854864,-500.0,0.0003041,31]
[336808892,1725181854873,-500.0,0.0003041,2]
[336808893,1725181854882,-151.0,0.0003041,7]
[336808894,1725181854892,-500.0,0.0003041,31]
[336808895,1725181854901,-500.0,0.0003041,31]
[336808896,1725181854910,-500.0,0.0003041,31]
[336808897,1725181854920,-500.0,0.0003041,31]
[336808898,1725181854929,-500.0,0.0003041,31]
[336808899,1725181854939,-500.0,0.0003041,31]
[336808900,1725181854948,-306.90346534,0.0003041,31]
[336808901,1725181854958,-500.0,0.0003041,31]
[336808902,1725181854967,-500.0,0.0003041,31]
[336808903,1725181854976,-500.0,0.0003041,31]
[336808904,1725181854986,-500.0,0.0003041,31]
[336808905,1725181854995,-500.0,0.0003041,31]
[336808906,1725181855004,-500.0,0.0003041,31]
[336808907,1725181855013,-500.0,0.0003041,31]
[336808908,1725181855022,-500.0,0.0003041,31]
[336808909,1725181855031,-500.0,0.0003041,31]
[336808910,1725181855041,-368.99011333,0.0003041,31]
[336808911,1725181855050,-500.0,0.0003041,31]
[336808912,1725181855060,-500.0,0.0003041,31]
[336808913,1725181855070,-500.0,0.0003041,31]
[336808914,1725181855079,-500.0,0.0003041,31]
[336808915,1725181855089,-500.0,0.0003041,31]
[336808916,1725181855098,-500.0,0.0003041,31]
[336808917,1725181855107,-500.0,0.0003041,31]
[336808918,1725181855116,-500.0,0.0003041,31]
[336808919,1725181855125,-500.0,0.0003041,31]
[336808920,1725181855134,-500.0,0.0003041,31]
[336808921,1725181855143,-500.66973205,0.0003041,31]
[336808922,1725181855152,-500.0,0.0003041,31]
[336808923,1725181855161,-353.25271443,0.0003041,31]
[336808924,1725181855170,-500.0,0.0003041,31]
[336808925,1725181855179,-500.0,0.0003041,31]
[336808926,1725181855188,-167.39830385,0.0003041,31]
[336808927,1725181855197,-503.1577691,0.0003041,31]
[336808928,1725181855207,-500.0,0.0003041,31]
[336808929,1725181855217,-501.18504295,0.0003041,31]
[336808930,1725181855226,-500.0,0.0003041,31]
[336808931,1725181855235,-500.0,0.0003041,31]
[336808932,1725181855245,-500.0,0.0003041,31]
[336808933,1725181855254,-503.93,0.0003041,31]
[336808934,1725181855263,-500.0,0.0003041,31]
[336808935,1725181855272,-500.0,0.0003041,31]
[336808936,1725181855281,-500.0,0.0003041,31]
[336808937,1725181855290,-485.92556822,0.0003041,31]
[336808938,1725181855303,-500.0,0.0003041,31]
[336808939,1725181855315,-500.0,0.0003041,31]
[336808940,1725181855324,-500.0,0.0003041,31]
[336808941,1725181855333,-500.0,0.0003041,31]
[336808942,1725181855344,-500.0,0.0003041,31]
[336808943,1725181855354,-501.34607379,0.0003041,31]
[336808944,1725181855363,-509.68234293,0.0003041,31]
[336808945,1725181855372,-500.0,0.0003041,31]
[336808946,1725181855381,-502.84179359,0.0003041,31]
[336808947,1725181855390,-500.0,0.0003041,31]
[336808948,1725181855399,-500.0,0.0003041,31]
[336808949,1725181855407,-500.0,0.0003041,31]
[336808950,1725181855417,-500.0,0.0003041,31]
[336808951,1725181855428,-546.9798973,0.0003041,31]
[336808952,1725181855437,-501.62097225,0.0003041,31]
[336808953,1725181855446,-618.93,0.0003041,31]
[336808954,1725181855455,-549.03876514,0.0003041,31]
[336808955,1725181855464,-500.0,0.0003041,31]
[336808956,1725181855473,-500.0,0.0003041,31]
[336808957,1725181855482,-500.0,0.0003041,31]
[336808958,1725181855491,-500.0,0.0003041,31]
[336808959,1725181855500,-500.0,0.0003041,31]
[336808960,1725181855510,-500.0,0.0003041,31]
[336808961,1725181855519,-500.0,0.0003041,31]
[336808962,1725181855528,-500.0,0.0003041,31]
[336808963,1725181855537,-507.52296583,0.0003041,31]
[336808964,1725181855546,-500.89430039,0.0003041,31]
[336808965,1725181855555,-463.55958975,0.0003041,31]
[336808966,1725181855564,-500.0,0.0003041,31]
[336808967,1725181855573,-500.0,0.0003041,31]
[336808968,1725181855582,-506.74713995,0.0003041,31]
[336808969,1725181855592,-500.0,0.0003041,31]
[336808970,1725181855600,-500.0,0.0003041,31]
[336808971,1725181855610,-500.0,0.0003041,31]
[336808972,1725181855619,-500.473026,0.0003041,31]
[336808973,1725181855627,-500.0,0.0003041,31]
[336808974,1725181855637,-500.0,0.0003041,31]
[336808975,1725181855646,-500.0,0.0003041,31]
[336808976,1725181855655,-500.0,0.0003041,31]
[336808977,1725181855663,-513.98,0.0003041,31]
[336808978,1725181855672,-500.0,0.0003041,31]
[336808979,1725181855681,-500.0,0.0003041,31]
[336808980,1725181855691,-504.09,0.0003041,31]
[336808981,1725181855701,-500.0,0.0003041,31]
[336808982,1725181855710,-929.3,0.0003041,31]
[336808983,1725181855718,-500.0,0.0003041,31]
[336808984,1725181855727,-500.0,0.0003041,31]
[336808985,1725181855736,-500.0,0.0003041,31]
[336808986,1725181855746,-500.0,0.0003041,31]
[336808987,1725181855755,-500.0,0.0003041,31]
[336808988,1725181855764,-951.4,0.0003041,31]
[336808989,1725181855773,-555.56,0.0003041,31]
[336808990,1725181855782,-581.25,0.0003041,31]
[336808991,1725181855791,-520.48181989,0.0003041,31]
[336808992,1725181855801,-500.0,0.0003041,31]
[336808993,1725181855811,-521.44,0.0003041,31]
[336808994,1725181855820,-500.0,0.0003041,31]
[336808995,1725181855829,-500.0,0.0003041,31]
[336808996,1725181855838,-177.483943,0.0003041,7]
[336808997,1725181855848,-500.0,0.0003041,31]
[336808998,1725181855857,-500.0,0.0003041,31]
[336808999,1725181855866,-500.0,0.0003041,31]
[336809000,1725181855875,-177.483949,0.0003041,7]
[336809001,1725181855884,-500.0,0.0003041,31]
[336809002,1725181855894,-500.0,0.0003041,31]
[336809003,1725181855903,-500.0,0.0003041,31]
[336809004,1725181855913,-500.0,0.0003041,31]
[336809005,1725181855922,-500.0,0.0003041,31]
[336809006,1725181855931,-500.0,0.0003041,31]
[336809007,1725181855941,-500.0,0.0003041,30]
[336809008,1725181855950,-500.0,0.0003041,31]
[336809009,1725181855959,-637.17,0.0003041,31]
[336809010,1725181855968,-500.0,0.0003041,31]
[336809011,1725181855978,-500.0,0.0003041,20]
[336809012,1725181855987,-500.0,0.0003041,31]
[336809013,1725181855996,-500.0,0.0003041,31]
[336809014,1725181856006,-823.95,0.0003041,31]
[336809015,1725181856016,-500.0,0.0003041,31]
[336809016,1725181856025,-500.0,0.0003041,31]
[336809017,1725181856035,-500.0,0.0003041,31]
[336809018,1725181856044,-1500.84,0.0003041,31]
[336809019,1725181856054,-500.0,0.0003041,31]
[336809020,1725181856063,-500.0,0.0003041,31]
[336809021,1725181856072,-542.54800923,0.0003041,31]
[336809022,1725181856081,-500.0,0.0003041,31]
[336809023,1725181856090,-502.49,0.0003041,31]
[336809024,1725181856099,-500.0,0.0003041,31]
[336809025,1725181856108,-500.0,0.0003041,31]
[336809026,1725181856117,-500.0,0.0003041,31]
[336809027,1725181856127,-2766.99,0.0003041,31]
[336809028,1725181856136,-500.0,0.0003041,31]
[336809029,1725181856145,-500.0,0.0003041,31]
[336809030,1725181856155,-500.0,0.0003041,31]
[336809031,1725181856165,-500.0,0.0003041,31]
[336809032,1725181856174,-500.0,0.0003041,31]
[336809033,1725181856183,-1198.01,0.0003041,31]
[336809034,1725181856193,-500.0,0.0003041,31]
[336809035,1725181856202,-500.0,0.0003041,31]
[336809036,1725181856211,-500.0,0.0003041,31]
[336809037,1725181856220,-646.03,0.0003041,31]
[336809038,1725181856336,-500.0,0.0003041,31]
[336809039,1725181856350,-500.0,0.0003041,31]
[336809040,1725181856359,-561.53098103,0.0003041,31]
[336809041,1725181856369,-500.0,0.0003041,31]
[336809042,1725181856378,-500.0,0.0003041,31]
[336809043,1725181856388,-500.0,0.0003041,31]
[336809044,1725181856398,-500.0,0.0003041,31]
[336809045,1725181856408,-500.0,0.0003041,31]
[336809046,1725181856417,-500.44581736,0.0003041,31]
[336809047,1725181856428,-500.0,0.0003041,31]
[336809048,1725181856438,-505.74567991,0.0003041,31]
[336809049,1725181856447,-503.59389083,0.0003041,31]
[336809050,1725181856457,-500.0,0.0003041,31]
[336809051,1725181856466,-500.0,0.0003041,31]
[336809052,1725181856476,-500.0,0.0003041,31]
[336809053,1725181856486,-500.0,0.0003041,31]
[336809054,1725181856495,-648.23887466,0.0003041,31]
[336809055,1725181856505,-151.0,0.0003041,7]
[336809056,1725181856515,-500.0,0.0003041,31]
[336809057,1725181856528,-500.0,0.0003041,31]
[336809058,1725181856538,-500.0,0.0003041,31]
[336809059,1725181856548,-664.96,0.0003041,31]
[336809060,1725181856558,-500.0,0.0003041,31]
[336809061,1725181856567,-500.0,0.0003041,31]
[336809062,1725181856576,-500.0,0.0003041,31]
[336809063,1725181856586,-500.0,0.0003041,31]
[336809064,1725181856596,-500.0,0.0003041,31]
[336809065,1725181856605,-548.03232326,0.0003041,31]
[336809066,1725181856615,-500.0,0.0003041,31]
[336809067,1725181856625,-502.89593893,0.0003041,31]
[336809068,1725181856635,-500.0,0.0003041,31]
[336809069,1725181856646,-500.0,0.0003041,31]
[336809070,1725181856656,-500.0,0.0003041,31]
[336809071,1725181856666,-500.0,0.0003041,31]
[336809072,1725181856676,-570.14976887,0.0003041,31]
[336809073,1725181856686,-590.11,0.0003041,31]
[336809074,1725181856696,-500.0,0.0003041,31]
[336809075,1725181856706,-500.0,0.0003041,31]
[336809076,1725181856715,-947.73,0.0003041,31]
[336809077,1725181856725,-501.93429137,0.0003041,31]
[336809078,1725181856734,-503.86842878,0.0003041,31]
[336809079,1725181856744,-500.0,0.0003041,31]
[336809080,1725181856754,-500.0,0.0003041,31]
[336809081,1725181856763,-920.6,0.0003041,31]
[336809082,1725181856772,-472.47114977,0.0003041,31]
[336809083,1725181856782,-500.0,0.0003041,31]
[336809084,1725181856791,-500.0,0.0003041,31]
[336809085,1725181856802,-500.0,0.0003041,31]
[336809086,1725181856811,-500.0,0.0003041,31]
[336809087,1725181856821,-500.0,0.0003041,31]
[336809088,1725181856830,-500.0,0.0003041,31]
[336809089,1725181856841,-500.0,0.0003041,31]
[336809090,1725181856850,-500.0,0.0003041,31]
[336809091,1725181856860,-500.0,0.0003041,31]
[336809092,1725181856870,-500.0,0.0003041,31]
[336809093,1725181856880,-500.0,0.0003041,31]
[336809094,1725181856890,-500.0,0.0003041,31]
[336809095,1725181856899,-500.0,0.0003041,31]
[336809096,1725181856909,-505.05089213,0.0003041,31]
[336809097,1725181856918,-500.0,0.0003041,31]
[336809098,1725181856928,-500.0,0.0003041,31]
[336809099,1725181856937,-500.0,0.0003041,31]
[336809100,1725181856947,-500.0,0.0003041,31]
[336809101,1725181856956,-500.0,0.0003041,31]
[336809102,1725181856966,-500.0,0.0003041,31]
[336809103,1725181856975,-500.99527425,0.0003041,31]
[336809104,1725181856985,-500.0,0.0003041,31]
[336809105,1725181856995,-500.0,0.0003041,31]
[336809106,1725181857004,-500.0,0.0003041,31]
[336809107,1725181857013,-501.0151017,0.0003041,31]
[336809108,1725181857023,-501.94255959,0.0003041,31]
[336809109,1725181857032,-500.0,0.0003041,31]
[336809110,1725181857042,-500.0,0.0003041,31]
[336809111,1725181857052,-500.0,0.0003041,31]
[336809112,1725181857062,-500.0,0.0003041,31]
[336809113,1725181857071,-500.0,0.0003041,31]
[336809114,1725181857081,-1187.16,0.0003041,31]
[336809115,1725181857091,-500.0,0.0003041,31]
[336809116,1725181857101,-500.0,0.0003041,31]
[336809117,1725181857111,-500.0,0.0003041,31]
[336809118,1725181857121,-500.0,0.0003041,31]
[336809119,1725181857130,-500.0,0.0003041,31]
[336809120,1725181857139,-500.0,0.0003041,31]
[336809121,1725181857149,-1039.88,0.0003041,31]
[336809122,1725181857158,-500.0,0.0003041,31]
[336809123,1725181857168,-500.0,0.0003041,31]
[336809124,1725181857177,-500.48309989,0.0003041,31]
[336809125,1725181857187,-500.0,0.0003041,31]
[336809126,1725181857196,-500.0,0.0003041,31]
[336809127,1725181857205,-500.0,0.0003041,31]
[336809128,1725181857215,-500.0,0.0003041,31]
[336809129,1725181857225,-500.0,0.0003041,31]
[336809130,1725181857235,-768.34,0.0003041,31]
[336809131,1725181857244,-500.0,0.0003041,31]
[336809132,1725181857255,-500.0,0.0003041,31]
[336809133,1725181857265,-500.0,0.0003041,31]
[336809134,1725181857275,-500.0,0.0003041,31]
[336809135,1725181857285,-500.0,0.0003041,31]
[336809136,1725181857294,-500.0,0.0003041,31]
[336809137,1725181857304,-500.0,0.0003041,31]
[336809138,1725181857314,-500.0,0.0003041,31]
[336809139,1725181857324,-1584.51971,0.0003041,7]
[336809140,1725181857333,-1015.02,0.0003041,31]
[336809141,1725181857343,-500.0,0.0003041,31]
[336809142,1725181857355,-500.0,0.0003041,31]
[336809143,1725181857364,-500.0,0.0003041,31]
[336809144,1725181857374,-500.0,0.0003041,31]
[336809145,1725181857383,-1584.519716,0.0003041,7]
[336809146,1725181857394,-500.0,0.0003041,31]
[336809147,1725181857403,-512.28540056,0.0003041,31]
[336809148,1725181857413,-1165.41,0.0003041,31]
[336809149,1725181857424,-500.0,0.0003041,31]
[336809150,1725181857434,-500.0,0.0003041,31]
[336809151,1725181857443,-1138.56,0.0003041,31]
[336809152,1725181857452,-500.0,0.0003041,7]
[336809153,1725181857462,-500.0,0.0003041,31]
[336809154,1725181857472,-500.0,0.0003041,31]
[336809155,1725181857482,-500.0,0.0003041,31]
[336809156,1725181857492,-500.0,0.0003041,31]
[336809157,1725181857502,-500.0,0.0003041,31]
[336809158,1725181857510,-500.0,0.0003041,31]
[336809159,1725181857519,-972.59,0.0003041,31]
[336809160,1725181857529,-500.0,0.0003041,31]
[336809161,1725181857539,-500.0,0.0003041,31]
[336809162,1725181857548,-500.0,0.0003041,31]
[336809163,1725181857558,-500.0,0.0003041,31]
[336809164,1725181857568,-500.0,0.0003041,31]
[336809165,1725181857577,-512.39,0.0003041,31]
[336809166,1725181857587,-250.45872117,0.0003041,31]
[336809167,1725181857597,-500.0,0.0003041,31]
[336809168,1725181857606,-500.0,0.0003041,31]
[336809169,1725181857616,-500.0,0.0003041,31]
[336809170,1725181857626,-500.0,0.0003041,31]
[336809171,1725181857637,-500.0,0.0003041,31]
[336809172,1725181857647,-912.56,0.0003041,31]
[336809173,1725181857656,-500.0,0.0003041,31]
[336809174,1725181857666,-500.0,0.0003041,31]
[336809175,1725181857675,-502.67661693,0.0003041,31]
[336809176,1725181857685,-500.0,0.0003041,31]
[336809177,1725181857694,-500.0,0.0003041,31]
[336809178,1725181857703,-585.89,0.0003041,31]
[336809179,1725181857713,-500.0,0.0003041,31]
[336809180,1725181857722,-500.0,0.0003041,31]
[336809181,1725181857733,-500.0,0.0003041,31]
[336809182,1725181857744,-500.0,0.0003041,31]
[336809183,1725181857753,-500.0,0.0003041,31]
[336809184,1725181857763,-504.44866529,0.0003041,31]
[336809185,1725181857772,-500.0,0.0003041,31]
[336809186,1725181857782,-212.139663,0.0003041,7]
[336809187,1725181857792,-1066.69,0.0003041,31]
[336809188,1725181857802,-500.0,0.0003041,31]
[336809189,1725181857811,-500.0,0.0003041,31]
[336809190,1725181857821,-212.139669,0.0003041,7]
[336809191,1725181857830,-500.0,0.0003041,31]
[336809192,1725181857839,-500.0,0.0003041,31]
[336809193,1725181857850,-500.0,0.0003041,31]
[336809194,1725181857859,-500.0,0.0003041,31]
[336809195,1725181857869,-877.497958,0.0003041,7]
[336809196,1725181857879,-629.37,0.0003041,31]
[336809197,1725181857888,-500.0,0.0003041,31]
[336809198,1725181857897,-877.497955,0.0003041,7]
[336809199,1725181857907,-500.0,0.0003041,31]
[336809200,1725181857917,-500.0,0.0003041,31]
[336809201,1725181857927,-500.0,0.0003041,31]
[336809202,1725181857937,-500.0,0.0003041,31]
[336809203,1725181857947,-500.0,0.0003041,31]
[336809204,1725181857956,-500.0,0.0003041,31]
[336809205,1725181857965,-500.0,0.0003041,31]
[336809206,1725181857975,-500.0,0.0003041,31]
[336809207,1725181857984,-839.39,0.0003041,31]
[336809208,1725181857993,-536.73177803,0.0003041,31]
[336809209,1725181858003,-700.14,0.0003041,31]
[336809210,1725181858013,-500.0,0.0003041,31]
[336809211,1725181858022,-500.0,0.0003041,31]
[336809212,1725181858032,-500.0,0.0003041,31]
[336809213,1725181858042,-547.77,0.0003041,31]
[336809214,1725181858051,-500.0,0.0003041,31]
[336809215,1725181858061,-500.0,0.0003041,31]
[336809216,1725181858070,-500.0,0.0003041,31]
[336809217,1725181858080,-500.0,0.0003041,31]
[336809218,1725181858090,-500.0,0.0003041,31]
[336809219,1725181858099,-506.51235212,0.0003041,31]
[336809220,1725181858108,-504.80794002,0.0003041,31]
[336809221,1725181858118,-500.0,0.0003041,31]
[336809222,1725181858127,-500.0,0.0003041,31]
[336809223,1725181858136,-500.0,0.0003041,31]
[336809224,1725181858146,-500.0,0.0003041,31]
[336809225,1725181858155,-500.0,0.0003041,31]
[336809226,1725181858164,-500.0,0.0003041,31]
[336809227,1725181858174,-500.0,0.0003041,31]
[336809228,1725181858184,-500.0,0.0003041,31]
[336809229,1725181858193,-500.0,0.0003041,31]
[336809230,1725181858203,-752.52,0.0003041,31]
[336809231,1725181858212,-500.0,0.0003041,31]
[336809232,1725181858223,-206.28970598,0.0003041,31]
[336809233,1725181858232,-487.35780852,0.0003041,31]
[336809234,1725181858242,-500.0,0.0003041,31]
[336809235,1725181858250,-500.0,0.0003041,31]
[336809236,1725181858261,-501.58,0.0003041,31]
[336809237,1725181858271,-500.0,0.0003041,31]
[336809238,1725181858388,-200.0,0.0003041,7]
[336809239,1725181858399,-500.0,0.0003041,31]
[336809240,1725181858409,-669.87,0.0003041,31]
[336809241,1725181858420,-501.39074872,0.0003041,31]
[336809242,1725181858429,-500.0,0.0003041,31]
[336809243,1725181858439,-500.0,0.0003041,31]
[336809244,1725181858449,-524.37575311,0.0003041,31]
[336809245,1725181858458,-500.0,0.0003041,31]
[336809246,1725181858467,-500.0,0.0003041,31]
[336809247,1725181858477,-1450.31,0.0003041,31]